[Event "Titled Tuesday Blitz October 11 Early 2022"]
[White "Yuan, Qingyu"]
[Black "Slaby, Jerzy"]
[WhiteFideId "8609772"]
[BlackFideId "1121405"]
[WhiteElo "2359"]
[BlackElo "2548"]
[Result "1-0"]
[Round "08"]
[TimeControl "180+1"]
[Date "2022.10.12"]
[WhiteClock "0:00:21"]
[BlackClock "0:00:25"]

1. d4 {[%clk 0:03:00]}  Nf6 {[%clk 0:02:58]} 2. Bf4 {[%clk 0:03:00]}  d5 {[%clk 0:02:53]} 3. Nf3 {[%clk 0:03:00]}  c6 {[%clk 0:02:52]} 4. c3 {[%clk 0:02:58]}  Qb6 {[%clk 0:02:50]} 5. Qb3 {[%clk 0:02:58]}  Bf5 {[%clk 0:02:49]} 6. Nbd2 {[%clk 0:02:58]}  e6 {[%clk 0:02:49]} 7. Nh4 {[%clk 0:02:54]}  Nbd7 {[%clk 0:02:42]} 8. Nxf5 {[%clk 0:02:50]}  exf5 {[%clk 0:02:43]} 9. e3 {[%clk 0:02:50]}  Be7 {[%clk 0:02:39]} 10. h3 {[%clk 0:02:46]}  O-O {[%clk 0:02:38]} 11. Bd3 {[%clk 0:02:40]}  g6 {[%clk 0:02:38]} 12. O-O {[%clk 0:02:27]}  Rfe8 {[%clk 0:02:34]} 13. f3 {[%clk 0:02:24]}  Nf8 {[%clk 0:02:31]} 14. g4 {[%clk 0:02:22]}  fxg4 {[%clk 0:02:26]} 15. hxg4 {[%clk 0:02:21]}  Ne6 {[%clk 0:02:26]} 16. Be5 {[%clk 0:02:11]}  Nd7 {[%clk 0:02:20]} 17. Bg3 {[%clk 0:02:11]}  Qxb3 {[%clk 0:01:50]} 18. axb3 {[%clk 0:02:10]}  a6 {[%clk 0:01:50]} 19. e4 {[%clk 0:01:58]}  dxe4 {[%clk 0:01:38]} 20. fxe4 {[%clk 0:01:54]}  Rad8 {[%clk 0:01:35]} 21. b4 {[%clk 0:01:40]}  Nf6 {[%clk 0:01:30]} 22. Be2 {[%clk 0:01:34]}  Nxd4 {[%clk 0:01:28]} 23. cxd4 {[%clk 0:01:31]}  Rxd4 {[%clk 0:01:29]} 24. Rad1 {[%clk 0:01:15]}  Bxb4 {[%clk 0:01:16]} 25. Rxf6 {[%clk 0:01:09]}  Bxd2 {[%clk 0:01:12]} 26. e5 {[%clk 0:00:56]}  Be3+ {[%clk 0:01:02]} 27. Kg2 {[%clk 0:00:56]}  Rb4 {[%clk 0:01:02]} 28. Rd7 {[%clk 0:00:46]}  Rxb2 {[%clk 0:00:53]} 29. Kf3 {[%clk 0:00:46]}  Bg5 {[%clk 0:00:31]} 30. Rfxf7 {[%clk 0:00:45]}  Rf8 {[%clk 0:00:31]} 31. Bc4 {[%clk 0:00:31]}  Rxf7+ {[%clk 0:00:30]} 32. Bxf7+ {[%clk 0:00:28]}  Kf8 {[%clk 0:00:29]} 33. e6 {[%clk 0:00:22]}  Be7 {[%clk 0:00:27]} 34. Bf4 {[%clk 0:00:21]}  Rb3+ {[%clk 0:00:25]} 35. Ke2 {[%clk 0:00:21]} 1-0


[Site "https://www.chess.com"]

[Event "Titled Tuesday Blitz October 11 Early 2022"]
[White "Zaloznyy, Mike"]
[Black "Alexikov, Alexander"]
[WhiteFideId "2023075"]
[BlackFideId "14103958"]
[WhiteElo "2126"]
[BlackElo "2222"]
[Result "0-1"]
[Round "08"]
[TimeControl "180+1"]
[Date "2022.10.12"]
[WhiteClock "0:00:42"]
[BlackClock "0:01:22"]

1. Nf3 {[%clk 0:03:00]}  c5 {[%clk 0:02:59]} 2. b3 {[%clk 0:02:59]}  d5 {[%clk 0:02:58]} 3. e3 {[%clk 0:02:58]}  a6 {[%clk 0:02:56]} 4. Bb2 {[%clk 0:02:49]}  Nc6 {[%clk 0:02:56]} 5. c4 {[%clk 0:02:48]}  d4 {[%clk 0:02:54]} 6. exd4 {[%clk 0:02:45]}  cxd4 {[%clk 0:02:53]} 7. b4 {[%clk 0:02:41]}  Nxb4 {[%clk 0:02:25]} 8. Nxd4 {[%clk 0:02:24]}  e5 {[%clk 0:02:22]} 9. Nc2 {[%clk 0:01:52]}  Nc6 {[%clk 0:01:59]} 10. Be2 {[%clk 0:01:32]}  Nf6 {[%clk 0:01:49]} 11. d4 {[%clk 0:01:26]}  exd4 {[%clk 0:01:47]} 12. Nxd4 {[%clk 0:01:25]}  Bb4+ {[%clk 0:01:46]} 13. Kf1 {[%clk 0:01:25]}  Bd7 {[%clk 0:01:34]} 14. Bf3 {[%clk 0:01:16]}  O-O {[%clk 0:01:26]} 15. Nxc6 {[%clk 0:00:57]}  Bxc6 {[%clk 0:01:25]} 16. Bxc6 {[%clk 0:00:42]}  Qxd1# {[%clk 0:01:22]} 0-1


[Site "https://www.chess.com"]

[Event "Titled Tuesday Blitz October 11 Early 2022"]
[White "Zhigalko, Sergei"]
[Black "Araujo Sanchez, Josue"]
[WhiteFideId "13502956"]
[BlackFideId "6416896"]
[WhiteElo "2662"]
[BlackElo "2370"]
[Result "1-0"]
[Round "08"]
[TimeControl "180+1"]
[Date "2022.10.11"]
[WhiteClock "0:00:18"]
[BlackClock "0:00:15"]

1. e4 {[%clk 0:03:00]}  c5 {[%clk 0:02:51]} 2. Nf3 {[%clk 0:02:59]}  d6 {[%clk 0:02:52]} 3. d4 {[%clk 0:03:00]}  cxd4 {[%clk 0:02:53]} 4. Qxd4 {[%clk 0:03:00]}  Nf6 {[%clk 0:02:53]} 5. Nc3 {[%clk 0:03:00]}  a6 {[%clk 0:02:53]} 6. Bc4 {[%clk 0:03:01]}  Nc6 {[%clk 0:02:54]} 7. Qd3 {[%clk 0:03:01]}  g6 {[%clk 0:02:54]} 8. Bg5 {[%clk 0:03:01]}  Bg7 {[%clk 0:02:53]} 9. Bb3 {[%clk 0:03:01]}  O-O {[%clk 0:02:54]} 10. O-O-O {[%clk 0:03:02]}  Be6 {[%clk 0:02:53]} 11. Kb1 {[%clk 0:03:01]}  Nd7 {[%clk 0:02:48]} 12. Qe3 {[%clk 0:02:57]}  Qb6 {[%clk 0:02:45]} 13. Qxb6 {[%clk 0:02:52]}  Nxb6 {[%clk 0:02:44]} 14. Nd5 {[%clk 0:02:52]}  Bxd5 {[%clk 0:01:53]} 15. exd5 {[%clk 0:02:46]}  Ne5 {[%clk 0:01:52]} 16. Bxe7 {[%clk 0:02:39]}  Rfe8 {[%clk 0:01:52]} 17. Bxd6 {[%clk 0:02:26]}  Nxf3 {[%clk 0:01:38]} 18. gxf3 {[%clk 0:02:25]}  a5 {[%clk 0:01:38]} 19. Bc7 {[%clk 0:02:12]}  Nd7 {[%clk 0:01:32]} 20. Ba4 {[%clk 0:02:10]}  Rec8 {[%clk 0:01:33]} 21. d6 {[%clk 0:02:04]}  Nf8 {[%clk 0:01:28]} 22. Rhe1 {[%clk 0:01:54]}  Bf6 {[%clk 0:01:27]} 23. Bb3 {[%clk 0:01:40]}  Rxc7 {[%clk 0:01:13]} 24. dxc7 {[%clk 0:01:38]}  Rc8 {[%clk 0:01:14]} 25. Rd5 {[%clk 0:01:27]}  Rxc7 {[%clk 0:01:12]} 26. Rxa5 {[%clk 0:01:26]}  Bd4 {[%clk 0:01:10]} 27. Re2 {[%clk 0:01:22]}  Kg7 {[%clk 0:01:06]} 28. c3 {[%clk 0:01:22]}  Bc5 {[%clk 0:01:05]} 29. a4 {[%clk 0:01:07]}  Bd6 {[%clk 0:01:05]} 30. h3 {[%clk 0:01:03]}  Kf6 {[%clk 0:01:00]} 31. Rd5 {[%clk 0:01:01]}  Bc5 {[%clk 0:00:57]} 32. Rd8 {[%clk 0:00:49]}  Nd7 {[%clk 0:00:50]} 33. a5 {[%clk 0:00:39]}  g5 {[%clk 0:00:40]} 34. Bd5 {[%clk 0:00:33]}  Be7 {[%clk 0:00:31]} 35. Rh8 {[%clk 0:00:30]}  Nf8 {[%clk 0:00:24]} 36. Rg8 {[%clk 0:00:24]}  Ng6 {[%clk 0:00:19]} 37. Rb8 {[%clk 0:00:19]}  Nf4 {[%clk 0:00:18]} 38. Rxe7 {[%clk 0:00:19]}  Kxe7 {[%clk 0:00:15]} 39. Bxb7 {[%clk 0:00:18]} 1-0


[Site "https://www.chess.com"]

[Event "Titled Tuesday Blitz October 11 Early 2022"]
[White "Ziatdinov, Raset"]
[Black "Fernandez De La Vara, Arnaldo"]
[WhiteFideId "2015323"]
[BlackFideId "3518388"]
[WhiteElo "2220"]
[BlackElo "2387"]
[Result "0-1"]
[Round "08"]
[TimeControl "180+1"]
[Date "2022.10.12"]
[WhiteClock "0:01:06"]
[BlackClock "0:00:05"]

1. Nc3 {[%clk 0:03:00]}  c5 {[%clk 0:02:56]} 2. Nf3 {[%clk 0:03:00]}  Nf6 {[%clk 0:02:51]} 3. e4 {[%clk 0:02:59]}  Nc6 {[%clk 0:02:48]} 4. d4 {[%clk 0:02:58]}  cxd4 {[%clk 0:02:49]} 5. Nxd4 {[%clk 0:02:59]}  d6 {[%clk 0:02:49]} 6. f3 {[%clk 0:02:57]}  e5 {[%clk 0:02:43]} 7. Nb3 {[%clk 0:02:55]}  Be6 {[%clk 0:02:42]} 8. Be3 {[%clk 0:02:54]}  Be7 {[%clk 0:02:37]} 9. Be2 {[%clk 0:02:49]}  O-O {[%clk 0:02:35]} 10. O-O {[%clk 0:02:50]}  a5 {[%clk 0:02:28]} 11. Nd5 {[%clk 0:02:45]}  a4 {[%clk 0:02:25]} 12. Nc1 {[%clk 0:02:43]}  Nd7 {[%clk 0:02:01]} 13. c3 {[%clk 0:02:41]}  f5 {[%clk 0:01:52]} 14. Nd3 {[%clk 0:02:25]}  Bg5 {[%clk 0:01:43]} 15. Qd2 {[%clk 0:02:15]}  Bxe3+ {[%clk 0:01:42]} 16. Nxe3 {[%clk 0:02:15]}  Qg5 {[%clk 0:01:36]} 17. Nc4 {[%clk 0:02:08]}  Qe7 {[%clk 0:01:26]} 18. Nb4 {[%clk 0:01:56]}  Nxb4 {[%clk 0:00:43]} 19. cxb4 {[%clk 0:01:56]}  fxe4 {[%clk 0:00:20]} 20. fxe4 {[%clk 0:01:47]}  Bxc4 {[%clk 0:00:20]} 21. Bxc4+ {[%clk 0:01:46]}  Kh8 {[%clk 0:00:21]} 22. Rad1 {[%clk 0:01:46]}  Rxf1+ {[%clk 0:00:11]} 23. Rxf1 {[%clk 0:01:45]}  Nf6 {[%clk 0:00:11]} 24. Bd5 {[%clk 0:01:44]}  Rc8 {[%clk 0:00:09]} 25. Rc1 {[%clk 0:01:40]}  Qd8 {[%clk 0:00:08]} 26. Bxb7 {[%clk 0:01:38]}  Rxc1+ {[%clk 0:00:07]} 27. Qxc1 {[%clk 0:01:38]}  Qb6+ {[%clk 0:00:08]} 28. Kh1 {[%clk 0:01:38]}  Qxb7 {[%clk 0:00:09]} 29. Qc4 {[%clk 0:01:31]}  h6 {[%clk 0:00:08]} 30. Qe6 {[%clk 0:01:29]}  Nxe4 {[%clk 0:00:06]} 31. h4 {[%clk 0:01:23]}  Qxb4 {[%clk 0:00:04]} 32. Kh2 {[%clk 0:01:19]}  Nf6 {[%clk 0:00:04]} 33. Qc8+ {[%clk 0:01:14]}  Kh7 {[%clk 0:00:04]} 34. Qf5+ {[%clk 0:01:14]}  Kg8 {[%clk 0:00:05]} 35. Qe6+ {[%clk 0:01:15]}  Kf8 {[%clk 0:00:05]} 36. Qc8+ {[%clk 0:01:15]}  Kf7 {[%clk 0:00:05]} 37. Qc7+ {[%clk 0:01:13]}  Kg6 {[%clk 0:00:05]} 38. Qc2+ {[%clk 0:01:12]}  e4 {[%clk 0:00:05]} 39. Qe2 {[%clk 0:01:10]}  Qd4 {[%clk 0:00:05]} 40. Kh3 {[%clk 0:01:10]}  Qe5 {[%clk 0:00:05]} 41. g4 {[%clk 0:01:09]}  h5 {[%clk 0:00:05]} 42. g5 {[%clk 0:01:08]}  Ng4 {[%clk 0:00:05]} 43. Qg2 {[%clk 0:01:07]}  Qf4 {[%clk 0:00:05]} 44. Qg1 {[%clk 0:01:05]}  Qf3+ {[%clk 0:00:05]} 45. Qg3 {[%clk 0:01:06]}  Qh1+ {[%clk 0:00:05]} 0-1


[Site "https://www.chess.com"]

[Event "Titled Tuesday Blitz October 11 Early 2022"]
[White "Aaditya Dhingra"]
[Black "Saucey, Michel"]
[WhiteFideId "25678191"]
[BlackFideId "601845"]
[WhiteElo "2054"]
[BlackElo "2253"]
[Result "0-1"]
[Round "09"]
[TimeControl "180+1"]
[Date "2022.10.12"]
[WhiteClock "0:00:04"]
[BlackClock "0:00:04"]

1. d4 {[%clk 0:03:00]}  d5 {[%clk 0:02:59]} 2. c4 {[%clk 0:02:58]}  e6 {[%clk 0:02:58]} 3. Nc3 {[%clk 0:02:57]}  Nf6 {[%clk 0:02:58]} 4. Nf3 {[%clk 0:02:56]}  Bb4 {[%clk 0:02:57]} 5. Bg5 {[%clk 0:02:51]}  h6 {[%clk 0:02:54]} 6. Bxf6 {[%clk 0:02:51]}  Qxf6 {[%clk 0:02:53]} 7. e3 {[%clk 0:02:52]}  O-O {[%clk 0:02:52]} 8. cxd5 {[%clk 0:02:46]}  exd5 {[%clk 0:02:51]} 9. Be2 {[%clk 0:02:47]}  c6 {[%clk 0:02:50]} 10. Rc1 {[%clk 0:02:45]}  Nd7 {[%clk 0:02:46]} 11. O-O {[%clk 0:02:44]}  Bd6 {[%clk 0:02:45]} 12. Rb1 {[%clk 0:02:41]}  a5 {[%clk 0:02:44]} 13. a3 {[%clk 0:02:39]}  Qe7 {[%clk 0:02:41]} 14. Bd3 {[%clk 0:02:29]}  Re8 {[%clk 0:02:39]} 15. Re1 {[%clk 0:02:24]}  Nf6 {[%clk 0:02:39]} 16. h3 {[%clk 0:02:17]}  Ne4 {[%clk 0:02:36]} 17. Bxe4 {[%clk 0:02:17]}  dxe4 {[%clk 0:02:35]} 18. Nd2 {[%clk 0:02:17]}  f5 {[%clk 0:02:31]} 19. Nc4 {[%clk 0:02:16]}  Bc7 {[%clk 0:02:31]} 20. d5 {[%clk 0:02:15]}  Rd8 {[%clk 0:02:25]} 21. Qb3 {[%clk 0:01:45]}  Kh7 {[%clk 0:01:59]} 22. Red1 {[%clk 0:01:41]}  b5 {[%clk 0:01:52]} 23. Nd2 {[%clk 0:01:21]}  a4 {[%clk 0:01:41]} 24. Qa2 {[%clk 0:01:13]}  Qe5 {[%clk 0:01:38]} 25. Nf1 {[%clk 0:01:10]}  Bb7 {[%clk 0:01:18]} 26. dxc6 {[%clk 0:01:02]}  Bxc6 {[%clk 0:01:18]} 27. Ng3 {[%clk 0:01:02]}  f4 {[%clk 0:01:03]} 28. exf4 {[%clk 0:00:58]}  Qxf4 {[%clk 0:01:03]} 29. Qe6 {[%clk 0:00:58]}  e3 {[%clk 0:00:59]} 30. Qxc6 {[%clk 0:00:21]}  exf2+ {[%clk 0:00:58]} 31. Kf1 {[%clk 0:00:21]}  Qxg3 {[%clk 0:00:54]} 32. Rxd8 {[%clk 0:00:17]}  Rxd8 {[%clk 0:00:53]} 33. Qe4+ {[%clk 0:00:14]}  Kh8 {[%clk 0:00:50]} 34. Rd1 {[%clk 0:00:14]}  Rf8 {[%clk 0:00:43]} 35. Qe7 {[%clk 0:00:11]}  Rg8 {[%clk 0:00:27]} 36. Ne4 {[%clk 0:00:09]}  Qh2 {[%clk 0:00:26]} 37. Nxf2 {[%clk 0:00:09]}  Qf4 {[%clk 0:00:22]} 38. Qe4 {[%clk 0:00:07]}  Qf6 {[%clk 0:00:21]} 39. Qe2 {[%clk 0:00:05]}  Be5 {[%clk 0:00:19]} 40. Rd2 {[%clk 0:00:03]}  Rf8 {[%clk 0:00:17]} 41. g4 {[%clk 0:00:02]}  Bg3 {[%clk 0:00:06]} 42. Kg2 {[%clk 0:00:02]}  Bxf2 {[%clk 0:00:05]} 43. Qxf2 {[%clk 0:00:02]}  Qc6+ {[%clk 0:00:05]} 44. Kg3 {[%clk 0:00:02]}  Rxf2 {[%clk 0:00:05]} 45. Rd8+ {[%clk 0:00:03]}  Kh7 {[%clk 0:00:05]} 46. Kxf2 {[%clk 0:00:04]}  Qb6+ {[%clk 0:00:04]} 0-1


[Site "https://www.chess.com"]

[Event "Titled Tuesday Blitz October 11 Early 2022"]
[White "Aizpurua, Patrick Emilio"]
[Black "Molina, Roberto Junio Brito"]
[WhiteFideId "6600522"]
[BlackFideId "2109450"]
[WhiteElo "2378"]
[BlackElo "2388"]
[Result "0-1"]
[Round "09"]
[TimeControl "180+1"]
[Date "2022.10.11"]
[WhiteClock "0:00:04"]
[BlackClock "0:01:10"]

1. d4 {[%clk 0:03:00]}  c6 {[%clk 0:03:00]} 2. c4 {[%clk 0:03:00]}  d5 {[%clk 0:03:01]} 3. Nf3 {[%clk 0:03:00]}  Nf6 {[%clk 0:03:01]} 4. Nc3 {[%clk 0:03:00]}  dxc4 {[%clk 0:03:01]} 5. a4 {[%clk 0:03:00]}  Bf5 {[%clk 0:03:01]} 6. e3 {[%clk 0:03:01]}  Nbd7 {[%clk 0:03:01]} 7. Bxc4 {[%clk 0:03:01]}  e6 {[%clk 0:03:02]} 8. Qe2 {[%clk 0:03:01]}  Bb4 {[%clk 0:03:01]} 9. O-O {[%clk 0:03:01]}  O-O {[%clk 0:03:01]} 10. e4 {[%clk 0:03:01]}  Bg6 {[%clk 0:03:01]} 11. Bd3 {[%clk 0:03:01]}  Bh5 {[%clk 0:03:00]} 12. e5 {[%clk 0:03:01]}  Nd5 {[%clk 0:03:00]} 13. Nxd5 {[%clk 0:03:02]}  cxd5 {[%clk 0:03:01]} 14. Qe3 {[%clk 0:03:02]}  Re8 {[%clk 0:02:58]} 15. Bd2 {[%clk 0:03:02]}  Bxd2 {[%clk 0:02:52]} 16. Nxd2 {[%clk 0:03:03]}  Bg6 {[%clk 0:02:44]} 17. Bxg6 {[%clk 0:02:57]}  fxg6 {[%clk 0:02:45]} 18. Nf3 {[%clk 0:02:51]}  Rc8 {[%clk 0:02:44]} 19. Rfc1 {[%clk 0:02:44]}  Nb8 {[%clk 0:02:42]} 20. b4 {[%clk 0:02:40]}  Nc6 {[%clk 0:02:39]} 21. Qd2 {[%clk 0:02:22]}  Qd7 {[%clk 0:02:23]} 22. h3 {[%clk 0:01:25]}  b6 {[%clk 0:02:16]} 23. a5 {[%clk 0:01:21]}  bxa5 {[%clk 0:02:09]} 24. b5 {[%clk 0:00:50]}  Ne7 {[%clk 0:02:07]} 25. Qxa5 {[%clk 0:00:47]}  Rxc1+ {[%clk 0:02:02]} 26. Rxc1 {[%clk 0:00:47]}  Rc8 {[%clk 0:02:03]} 27. Rc5 {[%clk 0:00:43]}  h6 {[%clk 0:02:00]} 28. g4 {[%clk 0:00:43]}  g5 {[%clk 0:01:59]} 29. h4 {[%clk 0:00:25]}  gxh4 {[%clk 0:01:59]} 30. Nxh4 {[%clk 0:00:25]}  Kf7 {[%clk 0:01:59]} 31. Kh2 {[%clk 0:00:23]}  Ke8 {[%clk 0:01:49]} 32. f3 {[%clk 0:00:23]}  g5 {[%clk 0:01:38]} 33. Ng2 {[%clk 0:00:22]}  Rxc5 {[%clk 0:01:25]} 34. dxc5 {[%clk 0:00:22]}  d4 {[%clk 0:01:26]} 35. c6 {[%clk 0:00:18]}  Qd5 {[%clk 0:01:26]} 36. Qxa7 {[%clk 0:00:18]}  Qxb5 {[%clk 0:01:24]} 37. c7 {[%clk 0:00:16]}  Qc4 {[%clk 0:01:20]} 38. Qb8+ {[%clk 0:00:13]}  Kf7 {[%clk 0:01:20]} 39. Qd8 {[%clk 0:00:14]}  d3 {[%clk 0:01:13]} 40. Ne3 {[%clk 0:00:12]}  Qc3 {[%clk 0:01:13]} 41. Kg2 {[%clk 0:00:07]}  d2 {[%clk 0:01:13]} 42. Nd1 {[%clk 0:00:07]}  Qc1 {[%clk 0:01:13]} 43. Qd7 {[%clk 0:00:02]}  Qxd1 {[%clk 0:01:12]} 44. Qxe7+ {[%clk 0:00:03]}  Kxe7 {[%clk 0:01:12]} 45. c8=Q {[%clk 0:00:04]}  Qe2+ {[%clk 0:01:12]} 46. Kg3 {[%clk 0:00:04]}  d1=Q {[%clk 0:01:12]} 47. Qc7+ {[%clk 0:00:04]}  Qd7 {[%clk 0:01:10]} 0-1


[Site "https://www.chess.com"]

[Event "Titled Tuesday Blitz October 11 Early 2022"]
[White "Amgalantengis, Enkh-Amgalan"]
[Black "Martic, Ivan"]
[WhiteFideId "4903536"]
[BlackFideId "929301"]
[WhiteElo "1772"]
[BlackElo "2355"]
[Result "0-1"]
[Round "09"]
[TimeControl "180+1"]
[Date "2022.10.12"]
[WhiteClock "0:01:59"]
[BlackClock "0:02:07"]

1. d4 {[%clk 0:03:00]}  Nf6 {[%clk 0:02:54]} 2. c4 {[%clk 0:03:00]}  e6 {[%clk 0:02:53]} 3. g3 {[%clk 0:02:59]}  Bb4+ {[%clk 0:02:51]} 4. Bd2 {[%clk 0:02:59]}  a5 {[%clk 0:02:51]} 5. Nf3 {[%clk 0:02:58]}  O-O {[%clk 0:02:50]} 6. Bg2 {[%clk 0:02:59]}  d5 {[%clk 0:02:48]} 7. Qc1 {[%clk 0:02:59]}  b6 {[%clk 0:02:42]} 8. O-O {[%clk 0:02:57]}  Bb7 {[%clk 0:02:33]} 9. Ne5 {[%clk 0:02:51]}  Qc8 {[%clk 0:02:17]} 10. a3 {[%clk 0:02:37]}  Be7 {[%clk 0:02:14]} 11. Nc3 {[%clk 0:02:19]}  Nbd7 {[%clk 0:02:07]} 12. Nxd7 {[%clk 0:02:14]}  Qxd7 {[%clk 0:02:08]} 13. cxd5 {[%clk 0:02:14]}  exd5 {[%clk 0:02:08]} 14. Qc2 {[%clk 0:02:10]}  c5 {[%clk 0:02:07]} 15. dxc5 {[%clk 0:02:07]}  bxc5 {[%clk 0:02:08]} 16. Rfd1 {[%clk 0:02:07]}  d4 {[%clk 0:02:08]} 17. Qe4 {[%clk 0:01:59]}  Nxe4 {[%clk 0:02:07]} 0-1


[Site "https://www.chess.com"]

[Event "Titled Tuesday Blitz October 11 Early 2022"]
[White "Antonio, Jorge Carlos"]
[Black "Flis, Pawel"]
[WhiteFideId "113190"]
[BlackFideId "1112864"]
[WhiteElo "2247"]
[BlackElo "1836"]
[Result "0-1"]
[Round "09"]
[TimeControl "180+1"]
[Date "2022.10.12"]
[WhiteClock "0:00:30"]
[BlackClock "0:00:18"]

1. d4 {[%clk 0:02:56]}  Nf6 {[%clk 0:02:53]} 2. Nf3 {[%clk 0:02:55]}  c5 {[%clk 0:02:53]} 3. c3 {[%clk 0:02:54]}  b6 {[%clk 0:02:49]} 4. Bf4 {[%clk 0:02:52]}  d6 {[%clk 0:02:49]} 5. e3 {[%clk 0:02:52]}  Bb7 {[%clk 0:02:49]} 6. Bd3 {[%clk 0:02:51]}  g6 {[%clk 0:02:49]} 7. Nbd2 {[%clk 0:02:50]}  Bg7 {[%clk 0:02:50]} 8. O-O {[%clk 0:02:49]}  Nbd7 {[%clk 0:02:50]} 9. Re1 {[%clk 0:02:47]}  O-O {[%clk 0:02:50]} 10. Bg3 {[%clk 0:02:45]}  Nh5 {[%clk 0:02:49]} 11. Bh4 {[%clk 0:02:40]}  a6 {[%clk 0:02:44]} 12. Be4 {[%clk 0:02:39]}  Bxe4 {[%clk 0:02:36]} 13. Nxe4 {[%clk 0:02:38]}  Re8 {[%clk 0:02:36]} 14. Nxd6 {[%clk 0:02:37]}  Rf8 {[%clk 0:02:29]} 15. Nc4 {[%clk 0:02:30]}  b5 {[%clk 0:02:24]} 16. Nce5 {[%clk 0:02:24]}  cxd4 {[%clk 0:02:24]} 17. exd4 {[%clk 0:02:23]}  Nxe5 {[%clk 0:02:21]} 18. Nxe5 {[%clk 0:02:22]}  Qc7 {[%clk 0:02:20]} 19. Nf3 {[%clk 0:02:15]}  Rfe8 {[%clk 0:02:12]} 20. Bg3 {[%clk 0:02:12]}  Nxg3 {[%clk 0:02:10]} 21. hxg3 {[%clk 0:02:11]}  e6 {[%clk 0:02:05]} 22. a3 {[%clk 0:02:10]}  Qc4 {[%clk 0:01:59]} 23. Qe2 {[%clk 0:02:10]}  Qc6 {[%clk 0:01:55]} 24. Ne5 {[%clk 0:02:08]}  Bxe5 {[%clk 0:01:52]} 25. Qxe5 {[%clk 0:02:07]}  Rac8 {[%clk 0:01:51]} 26. Re4 {[%clk 0:02:04]}  a5 {[%clk 0:01:39]} 27. Rh4 {[%clk 0:02:02]}  Qd5 {[%clk 0:01:34]} 28. Qxd5 {[%clk 0:01:49]}  exd5 {[%clk 0:01:34]} 29. Rg4 {[%clk 0:01:39]}  f6 {[%clk 0:01:29]} 30. Rf4 {[%clk 0:01:37]}  Kf7 {[%clk 0:01:28]} 31. Rf3 {[%clk 0:01:37]}  Re4 {[%clk 0:01:24]} 32. Re3 {[%clk 0:01:35]}  Rce8 {[%clk 0:01:25]} 33. Rxe4 {[%clk 0:01:33]}  Rxe4 {[%clk 0:01:23]} 34. Kf1 {[%clk 0:01:33]}  Re6 {[%clk 0:01:23]} 35. f3 {[%clk 0:01:33]}  g5 {[%clk 0:01:13]} 36. g4 {[%clk 0:01:27]}  Rb6 {[%clk 0:01:09]} 37. Ke2 {[%clk 0:01:24]}  b4 {[%clk 0:01:07]} 38. axb4 {[%clk 0:01:23]}  axb4 {[%clk 0:01:07]} 39. Kd3 {[%clk 0:01:22]}  bxc3 {[%clk 0:01:06]} 40. bxc3 {[%clk 0:01:20]}  Rb2 {[%clk 0:01:05]} 41. Ra7+ {[%clk 0:01:13]}  Kg6 {[%clk 0:01:04]} 42. Ra5 {[%clk 0:01:13]}  Rxg2 {[%clk 0:01:04]} 43. Rxd5 {[%clk 0:01:13]}  Rf2 {[%clk 0:00:51]} 44. Ke3 {[%clk 0:01:12]}  Rc2 {[%clk 0:00:52]} 45. Rc5 {[%clk 0:01:08]}  h5 {[%clk 0:00:51]} 46. d5 {[%clk 0:01:06]}  h4 {[%clk 0:00:50]} 47. Kd3 {[%clk 0:01:02]}  Rc1 {[%clk 0:00:49]} 48. Kd2 {[%clk 0:01:00]}  h3 {[%clk 0:00:32]} 49. Rc8 {[%clk 0:00:55]}  h2 {[%clk 0:00:32]} 50. Kxc1 {[%clk 0:00:52]}  h1=Q+ {[%clk 0:00:32]} 51. Kc2 {[%clk 0:00:52]}  Qxf3 {[%clk 0:00:30]} 52. Rd8 {[%clk 0:00:42]}  Qe4+ {[%clk 0:00:29]} 53. Kb3 {[%clk 0:00:42]}  Qxg4 {[%clk 0:00:25]} 54. c4 {[%clk 0:00:41]}  Qd1+ {[%clk 0:00:25]} 55. Kb4 {[%clk 0:00:41]}  Qb1+ {[%clk 0:00:25]} 56. Kc5 {[%clk 0:00:40]}  Qg1+ {[%clk 0:00:22]} 57. Kc6 {[%clk 0:00:39]}  g4 {[%clk 0:00:21]} 58. c5 {[%clk 0:00:35]}  g3 {[%clk 0:00:20]} 59. d6 {[%clk 0:00:35]}  Qg2+ {[%clk 0:00:19]} 60. Kc7 {[%clk 0:00:35]}  Qd5 {[%clk 0:00:18]} 61. c6 {[%clk 0:00:33]}  g2 {[%clk 0:00:18]} 62. Rg8+ {[%clk 0:00:31]}  Qxg8 {[%clk 0:00:17]} 63. d7 {[%clk 0:00:30]}  g1=Q {[%clk 0:00:17]} 64. d8=Q {[%clk 0:00:29]}  Qxd8+ {[%clk 0:00:17]} 65. Kxd8 {[%clk 0:00:29]}  Qc5 {[%clk 0:00:17]} 66. c7 {[%clk 0:00:29]}  f5 {[%clk 0:00:18]} 67. c8=Q {[%clk 0:00:29]}  Qxc8+ {[%clk 0:00:17]} 68. Kxc8 {[%clk 0:00:30]}  f4 {[%clk 0:00:18]} 0-1


[Site "https://www.chess.com"]

[Event "Titled Tuesday Blitz October 11 Early 2022"]
[White "Arabidze, Meri"]
[Black "Zemlyanskii, Ivan"]
[WhiteFideId "13604040"]
[BlackFideId "24249971"]
[WhiteElo "2403"]
[BlackElo "2107"]
[Result "1-0"]
[Round "09"]
[TimeControl "180+1"]
[Date "2022.10.11"]
[WhiteClock "0:00:28"]
[BlackClock "0:00:09"]

1. Nf3 {[%clk 0:02:56]}  Nf6 {[%clk 0:02:59]} 2. d4 {[%clk 0:02:56]}  e6 {[%clk 0:02:58]} 3. g3 {[%clk 0:02:56]}  d5 {[%clk 0:02:49]} 4. Bg2 {[%clk 0:02:56]}  c5 {[%clk 0:02:47]} 5. O-O {[%clk 0:02:55]}  cxd4 {[%clk 0:02:40]} 6. Nxd4 {[%clk 0:02:56]}  e5 {[%clk 0:02:38]} 7. Nf3 {[%clk 0:02:56]}  Nc6 {[%clk 0:02:37]} 8. c4 {[%clk 0:02:56]}  d4 {[%clk 0:02:36]} 9. e3 {[%clk 0:02:56]}  Be7 {[%clk 0:02:34]} 10. exd4 {[%clk 0:02:56]}  exd4 {[%clk 0:02:34]} 11. a3 {[%clk 0:02:54]}  a5 {[%clk 0:02:32]} 12. b3 {[%clk 0:02:53]}  O-O {[%clk 0:02:31]} 13. Bb2 {[%clk 0:02:53]}  Bc5 {[%clk 0:02:27]} 14. Ne1 {[%clk 0:02:41]}  Bf5 {[%clk 0:02:13]} 15. Nd3 {[%clk 0:02:41]}  Be7 {[%clk 0:02:09]} 16. h3 {[%clk 0:02:33]}  h6 {[%clk 0:02:04]} 17. g4 {[%clk 0:02:31]}  Bh7 {[%clk 0:02:01]} 18. Re1 {[%clk 0:02:31]}  Qc7 {[%clk 0:01:58]} 19. Qf3 {[%clk 0:02:24]}  Rfe8 {[%clk 0:01:53]} 20. Nd2 {[%clk 0:02:23]}  Rad8 {[%clk 0:01:50]} 21. Nf1 {[%clk 0:02:13]}  Bd6 {[%clk 0:01:40]} 22. Nd2 {[%clk 0:01:56]}  Bg6 {[%clk 0:01:31]} 23. Rad1 {[%clk 0:01:33]}  Nd7 {[%clk 0:01:26]} 24. Ne4 {[%clk 0:01:24]}  Nde5 {[%clk 0:01:19]} 25. Nxe5 {[%clk 0:01:19]}  Bxe5 {[%clk 0:01:19]} 26. Nc5 {[%clk 0:01:07]}  Qb6 {[%clk 0:01:03]} 27. Nxb7 {[%clk 0:00:58]}  Rc8 {[%clk 0:00:57]} 28. Nd6 {[%clk 0:00:48]}  Bxd6 {[%clk 0:00:56]} 29. Rxe8+ {[%clk 0:00:49]}  Rxe8 {[%clk 0:00:54]} 30. Qxc6 {[%clk 0:00:48]}  Qxc6 {[%clk 0:00:52]} 31. Bxc6 {[%clk 0:00:49]}  Re2 {[%clk 0:00:51]} 32. Bxd4 {[%clk 0:00:49]}  Bc2 {[%clk 0:00:47]} 33. Ra1 {[%clk 0:00:39]}  Bxb3 {[%clk 0:00:45]} 34. Bd5 {[%clk 0:00:39]}  Rd2 {[%clk 0:00:42]} 35. Bc3 {[%clk 0:00:33]}  Rc2 {[%clk 0:00:40]} 36. Bxa5 {[%clk 0:00:33]}  Bxc4 {[%clk 0:00:32]} 37. Bxc4 {[%clk 0:00:34]}  Rxc4 {[%clk 0:00:22]} 38. a4 {[%clk 0:00:34]}  Be5 {[%clk 0:00:15]} 39. Ra2 {[%clk 0:00:32]}  h5 {[%clk 0:00:09]} 40. gxh5 {[%clk 0:00:31]}  Rh4 {[%clk 0:00:09]} 41. Kg2 {[%clk 0:00:28]} 1-0


[Site "https://www.chess.com"]